bitfinex/quotes_ETHUSD_20250622
["timestamp","ask_amount","ask_price","bid_price","bid_amount"]
[1750561692941,10.0,2274.9,2274.6,2.63782146]
[1750561693233,10.0,2274.9,2274.8,2.63759451]
[1750561693794,10.2299021,2275.0,2274.7,2.63767239]
[1750561693998,0.2299021,2275.0,2274.7,2.63766725]
[1750561694201,10.2299021,2275.0,2274.6,2.098]
[1750561694400,0.55,2274.7,2274.2,0.7794]
[1750561694616,10.0,2274.5,2274.1,4.73639394]
[1750561694815,10.0,2274.5,2274.3,2.63816535]
[1750561695025,10.0,2274.5,2274.3,2.63816625]
[1750561695235,7.599,2274.8,2274.7,2.63762127]
[1750561695620,17.599,2274.8,2274.7,2.63762127]
[1750561695823,10.0,2274.8,2274.7,2.63762127]
[1750561697153,10.0,2274.7,2274.6,2.63778267]
[1750561697357,7.8259021,2275.0,2274.7,2.63769612]
[1750561697810,7.8259021,2275.0,2274.6,2.63775367]
[1750561698011,7.8259021,2275.0,2274.7,2.63770715]
[1750561698234,0.55,2274.9,2274.3,0.7794]
[1750561698548,10.0,2274.7,2274.5,2.63787894]
[1750561698715,12.3561704,2275.0,2274.6,2.63782643]
[1750561698906,7.59,2274.9,2274.6,2.63782643]
[1750561699255,10.0,2274.8,2274.6,2.63779403]
[1750561699432,10.0,2274.8,2274.3,3.41753588]
[1750561699603,10.0,2274.8,2274.3,0.7794]
[1750561699805,0.55,2274.9,2274.3,0.7794]
[1750561700006,7.588,2274.8,2274.6,2.63775242]
[1750561700305,10.0,2274.7,2274.6,2.63775242]
[1750561701136,0.55,2274.9,2274.6,2.63775242]
[1750561701333,10.0,2274.7,2274.3,0.7794]
[1750561701532,10.0,2274.7,2274.0,2.63852242]
[1750561701533,0.8293,2274.5,2274.0,2.63852242]
[1750561701745,7.582,2274.4,2274.1,2.63837093]
[1750561702106,0.55,2274.6,2274.0,0.04397115]
[1750561702307,7.582,2274.5,2274.4,2.63805838]
[1750561702661,7.582,2274.6,2274.3,2.63810615]
[1750561703114,17.582,2274.6,2274.5,2.6379424]
[1750561703315,17.587,2274.8,2274.7,2.63763707]
[1750561704738,17.587,2274.8,2274.7,2.63771046]
[1750561705766,10.0,2274.7,2273.5,2.63899587]
[1750561705911,0.55,2274.5,2274.2,2.63827611]
[1750561706112,10.0,2274.3,2274.2,2.63827611]
[1750561706551,10.0,2274.3,2273.9,4.73558225]
[1750561706751,10.0,2274.3,2273.9,2.097]
[1750561707240,10.0,2274.3,2274.1,2.63839987]
[1750561707449,10.0,2274.3,2274.1,2.63835007]
[1750561707912,7.584,2274.2,2274.1,2.63835007]
[1750561709225,7.582,2274.2,2274.1,2.6384064]
[1750561709853,0.55,2274.0,2273.4,4.66]
[1750561710036,0.55,2273.8,2273.2,2.097]
[1750561710249,17.582,2273.9,2273.5,2.63907736]
[1750561710454,0.55,2273.8,2273.2,2.097]
[1750561710760,0.55,2273.8,2273.4,2.6391604]
[1750561711448,10.0,2273.7,2273.4,2.63914924]
[1750561711653,7.582,2273.6,2273.2,2.14098493]
[1750561711851,7.582,2273.6,2273.4,2.6391417]
[1750561712050,7.582,2273.6,2273.2,4.7364347]
[1750561712257,10.0,2273.5,2273.4,2.63920792]
[1750561712452,10.0,2273.5,2273.3,2.63930977]
[1750561712632,10.0,2273.5,2273.2,2.097]
[1750561712832,10.0,2273.5,2272.9,2.097]
[1750561713032,0.55,2273.4,2273.0,2.63959664]
[1750561713259,7.582,2273.3,2272.9,9.396753]
[1750561713673,0.55,2273.2,2273.0,2.63966859]
[1750561713992,10.55,2273.2,2272.9,9.39678689]
[1750561714152,10.55,2273.2,2273.0,2.63958937]
[1750561714357,17.582,2273.1,2273.0,2.63958937]
[1750561714750,0.8144,2274.0,2273.1,0.7516]
[1750561715068,9.75414743,2274.7,2274.3,2.63809729]
[1750561715069,7.582,2274.5,2274.3,2.63809729]
[1750561715267,7.582,2274.5,2274.3,2.63810667]
[1750561715459,10.0,2274.4,2274.3,2.63810667]
[1750561715971,10.0,2274.4,2273.7,0.7516]
[1750561716166,10.0,2274.4,2274.1,2.63829303]
[1750561716734,10.0,2274.4,2274.3,2.63817438]
[1750561716971,0.8144,2274.6,2274.5,2.6379424]
[1750561717143,0.22981963,2274.7,2273.9,2.63854132]
[1750561717351,17.582,2274.6,2273.7,3.39037066]
[1750561717661,10.0,2274.5,2274.1,2.63834201]
[1750561717867,1.3001,2274.4,2273.8,2.63871615]
[1750561718060,7.582,2274.3,2274.0,2.6385098]
[1750561718373,10.0,2274.2,2274.0,2.6385198]
[1750561718577,11.83321,2274.2,2273.8,2.097]
[1750561718977,0.55,2274.1,2273.8,4.73571356]
[1750561719180,7.582,2274.0,2273.8,4.73571356]
[1750561719553,7.582,2274.0,2273.8,2.097]
[1750561719894,10.55,2273.9,2273.8,2.097]
[1750561720047,12.4182,2273.9,2273.8,2.097]
[1750561720268,0.55,2273.8,2273.5,2.63903669]
[1750561720474,0.55,2273.6,2273.4,2.63920846]
[1750561721095,0.55,2273.8,2273.4,2.63920846]
[1750561721403,2.13069715,2273.8,2273.4,2.63920846]
[1750561721608,2.13069715,2273.8,2273.1,0.755]
[1750561721774,0.55,2273.7,2273.4,2.63916342]
[1750561721974,7.582,2273.6,2273.4,2.63921002]
[1750561722169,10.0,2273.5,2273.4,2.63921002]
[1750561722412,0.55,2274.0,2273.6,2.63891725]
[1750561722706,10.0,2273.8,2273.4,2.63918833]
[1750561722907,10.0,2273.8,2273.6,2.63897712]
[1750561723111,10.0,2273.8,2273.7,2.63887056]
[1750561723286,10.0,2273.8,2273.6,2.6389275]
[1750561723929,10.0,2273.8,2273.7,2.63887056]
[1750561724796,0.22987174,2274.4,2273.8,2.6387545]
[1750561724985,0.22987174,2274.4,2273.7,1.06808706]
[1750561724986,7.582,2274.4,2274.3,2.63817438]
[1750561725186,2.63753532,2274.9,2274.5,2.63783175]
[1750561725187,0.8169,2274.9,2274.5,2.63783175]
[1750561725374,0.55,2274.7,2274.5,2.63785374]
[1750561725577,7.582,2274.8,2274.5,2.63785374]
[1750561725810,10.83989,2274.7,2274.5,2.63785374]
[1750561726220,10.83989,2274.7,2274.4,2.63801018]
[1750561726418,10.83989,2274.7,2274.5,2.63791219]
[1750561726579,10.83989,2274.7,2274.4,2.63801018]
[1750561726779,10.83989,2274.7,2274.5,2.63792387]
[1750561727020,7.582,2274.8,2274.4,2.6380549]
[1750561727313,10.0,2274.7,2274.6,2.63775199]
[1750561727818,10.0,2274.7,2274.4,2.63801313]
[1750561728011,10.0,2274.7,2274.4,2.63804412]
[1750561728186,10.0,2274.7,2274.2,3.44246971]
[1750561728394,10.0,2274.7,2274.5,2.63784999]
[1750561728717,0.55,2274.6,2274.2,2.63827318]
[1750561729048,7.582,2274.5,2274.3,2.63817438]
[1750561729708,7.582,2274.5,2274.2,2.63823497]
[1750561729878,10.0,2274.4,2274.1,2.63837269]
[1750561730081,10.55,2275.0,2274.2,0.93963727]
[1750561730328,0.55,2274.6,2274.2,2.63822748]
[1750561730617,0.55,2274.3,2273.8,2.63868165]
[1750561730932,17.582,2274.2,2274.1,2.6384064]
[1750561731092,17.582,2274.2,2274.0,2.63846794]
[1750561731280,17.582,2274.2,2273.9,2.63858261]
[1750561731475,17.582,2274.2,2274.0,2.63851904]
[1750561732215,17.582,2274.2,2274.1,2.6384064]
[1750561734134,10.0,2274.6,2274.5,2.63788203]
[1750561734728,0.55,2274.5,2274.1,0.7727]
[1750561735020,7.581,2274.4,2273.8,0.7727]
[1750561735232,17.581,2274.4,2274.3,2.63817438]
[1750561735717,10.0,2274.4,2274.3,2.63817438]
[1750561735917,7.581,2274.8,2274.3,1.30474118]
[1750561736119,10.0,2274.7,2274.6,2.63782643]
[1750561737639,10.0,2274.8,2274.6,2.63774012]
[1750561738494,10.0,2274.6,2274.3,5.50784136]
[1750561738696,10.0,2274.6,2274.5,2.6379424]
[1750561739198,10.0,2274.6,2274.0,0.7786]
[1750561739421,10.0,2274.4,2274.3,2.63811212]
[1750561740663,0.55,2274.9,2274.2,2.097]
[1750561740961,10.0,2274.7,2274.6,2.63772826]
[1750561741957,0.7701,2275.3,2275.2,2.6371308]
[1750561742128,1.72440235,2275.5,2275.3,2.63694895]
[1750561742464,1.72440235,2275.5,2275.2,2.63706924]
[1750561742465,7.581,2275.4,2275.2,2.63706924]
[1750561742629,1.72440235,2275.5,2275.4,2.636899]
[1750561742824,9.30440235,2275.5,2275.3,2.6369556]
[1750561743031,1.72440235,2275.5,2275.4,2.636899]
[1750561743273,0.2222433,2275.5,2275.4,2.636899]
[1750561743928,10.2222433,2275.5,2275.4,2.636899]
[1750561746227,12.00246763,2275.5,2275.1,4.66]
[1750561746444,12.00246763,2275.5,2275.3,2.63694939]
[1750561746858,12.55246763,2275.5,2275.4,2.636899]
[1750561747255,0.2222433,2275.5,2275.4,2.636899]
[1750561748930,0.2222433,2275.5,2275.4,7.296899]
[1750561749159,0.2222433,2275.5,2275.4,8.0916453]
[1750561749458,0.2222433,2275.5,2275.4,8.047699]
[1750561749833,0.2222433,2275.5,2275.4,15.624699]
[1750561750032,0.2222433,2275.5,2275.4,17.45086384]
[1750561750255,0.2222433,2275.5,2275.4,19.54686384]
[1750561750993,0.22004487,2275.5,2275.4,19.54686384]
[1750561751192,0.22004487,2275.5,2275.4,19.98941683]
[1750561751776,0.34616767,2276.0,2275.9,3.45311969]
[1750561751963,0.34616767,2276.0,2275.9,18.39507334]
[1750561752885,0.34616767,2276.0,2275.9,28.39507334]
[1750561753248,0.34616767,2276.0,2275.9,18.72207334]
[1750561753442,0.34616767,2276.0,2275.9,28.39407334]
[1750561754966,0.34616767,2276.0,2275.9,28.94407334]
[1750561755259,1.46883117,2276.4,2276.3,13.45265643]
[1750561755466,1.46883117,2276.4,2276.3,22.6365176]
[1750561756071,1.46883117,2276.4,2276.3,23.1865176]
[1750561756372,0.63553117,2276.4,2276.3,34.30294717]
[1750561756582,0.63553117,2276.4,2276.3,24.7305176]
[1750561756903,0.63553117,2276.4,2276.3,4.2447176]
[1750561757055,0.63553117,2276.4,2276.2,2.6359149]
[1750561757253,0.63553117,2276.4,2275.9,0.8082]
[1750561757459,0.63553117,2276.4,2276.0,2.63611815]
[1750561757460,0.55,2276.3,2276.0,2.63611815]
[1750561757661,0.7715,2276.2,2275.8,2.095]
[1750561757962,0.55,2276.1,2275.8,2.095]
[1750561758158,1.3215,2275.9,2275.8,2.095]
[1750561758372,1.3215,2275.9,2275.4,2.63685173]
[1750561758574,1.3215,2275.9,2275.5,2.63677927]
[1750561758776,0.55,2275.6,2275.0,4.73230143]
[1750561758987,10.55,2275.6,2275.0,6.52468222]
[1750561759153,0.7715,2275.4,2275.0,3.88738079]
[1750561759358,0.7715,2275.4,2274.8,12.649]
[1750561759600,10.7715,2275.4,2274.8,12.649]
[1750561759802,10.7715,2275.4,2274.9,2.63747851]
[1750561760167,0.55,2275.3,2275.0,0.36693741]
[1750561760366,0.7715,2275.7,2275.1,0.04395718]
[1750561760582,0.7715,2275.7,2275.1,0.42961173]
[1750561760815,0.7715,2276.1,2275.6,2.63657015]
[1750561761099,0.7715,2276.1,2275.6,4.73157015]
[1750561761459,0.7715,2276.1,2275.8,2.63637148]
[1750561761700,0.7715,2276.1,2275.8,2.63636015]
[1750561761903,0.7715,2276.1,2275.9,2.63624627]
[1750561762084,0.7715,2276.1,2275.8,2.63636015]
[1750561762404,1.44493117,2276.4,2275.9,0.04393701]
[1750561762708,1.44493117,2276.4,2275.9,2.63625701]
[1750561762862,1.44493117,2276.4,2276.0,2.63617045]
[1750561763678,1.44493117,2276.4,2276.1,2.63606013]
[1750561764183,1.44493117,2276.4,2276.0,2.6361774]
[1750561764379,1.44493117,2276.4,2276.1,2.63597705]
[1750561764583,1.44493117,2276.4,2276.2,2.6359002]
[1750561764821,1.44493117,2276.4,2276.2,2.63589032]
[1750561764978,1.44493117,2276.4,2276.1,2.095]
[1750561765181,1.44493117,2276.4,2276.3,2.63585643]
[1750561765523,1.44493117,2276.4,2276.2,2.6359353]
[1750561765896,1.44493117,2276.4,2276.3,2.63585643]
[1750561766409,0.63553117,2276.4,2276.3,2.63585643]
[1750561766919,0.63553117,2276.4,2276.3,4.20273084]
[1750561768199,0.63553117,2276.4,2276.3,8.90664947]
[1750561768416,0.63553117,2276.4,2276.3,8.86273084]
[1750561768806,0.63553117,2276.4,2276.3,9.30744988]
[1750561769220,0.63553117,2276.4,2276.3,4.64744988]
[1750561769534,0.63553117,2276.4,2276.3,4.69136749]
[1750561769699,0.63553117,2276.4,2276.3,15.24136749]
[1750561769903,1.93450584,2277.3,2277.2,2.63481468]
[1750561770100,1.93450584,2277.3,2277.2,4.72981468]
[1750561770660,2.19462309,2277.3,2276.4,0.8258]
[1750561770865,11.93450584,2277.3,2277.1,2.63493039]
[1750561771070,1.93450584,2277.3,2277.2,2.63481468]
[1750561771761,1.93450584,2277.3,2277.1,2.63487845]
[1750561771944,1.93450584,2277.3,2277.2,2.63481468]
[1750561773674,1.93450584,2277.3,2277.2,4.72781468]
[1750561773972,1.93450584,2277.3,2277.2,5.46847509]
[1750561774531,1.93450584,2277.3,2277.1,2.63487845]
[1750561774532,1.93450584,2277.3,2277.1,2.63487984]
[1750561774735,1.3238,2277.2,2276.8,4.7282197]
[1750561774935,0.55,2276.8,2276.0,2.9258]
[1750561775241,0.55,2276.3,2275.5,4.72976918]
[1750561775441,0.39675995,2277.6,2276.2,2.63597223]
[1750561775656,2.70830584,2277.3,2276.3,3.23333297]
[1750561775990,2.70830584,2277.3,2277.1,2.63489318]
[1750561776137,40.0,2277.2,2276.3,0.26359722]
[1750561776338,0.8005,2276.8,2276.5,2.63551512]
[1750561776678,0.55,2276.7,2276.4,2.63574064]
[1750561776881,0.55,2276.7,2276.2,2.63588067]
[1750561776882,0.55,2276.5,2276.2,2.63588067]
[1750561777046,0.8005,2276.4,2276.2,2.63588067]
[1750561777382,0.8005,2276.4,2276.3,2.63585643]
[1750561777550,0.8005,2277.1,2276.5,2.63555749]
[1750561777733,0.8005,2277.1,2276.9,2.63505892]
[1750561777940,0.8005,2277.1,2277.0,2.63504611]
[1750561778168,3.98544086,2277.1,2276.5,2.63554698]
[1750561778377,0.55,2276.5,2275.9,2.093]
[1750561778558,0.8005,2276.4,2276.0,2.63620386]
[1750561778752,0.8005,2276.4,2275.9,2.63626642]
[1750561779082,0.55,2276.2,2275.9,2.63626642]
[1750561779393,0.55,2276.2,2276.0,2.63620335]
[1750561779687,10.8005,2276.4,2276.3,2.63585643]
[1750561779840,0.55,2276.3,2276.2,2.63594224]
[1750561780039,0.8005,2276.4,2276.3,2.63585643]
[1750561782094,0.8271,2276.8,2276.4,2.63568489]
[1750561782295,0.55,2276.7,2276.3,2.63578353]
[1750561782476,0.55,2276.7,2276.2,4.72886111]
[1750561782788,10.0,2276.6,2276.2,2.093]
[1750561782944,2.13771,2276.6,2276.2,4.72894135]
[1750561783346,12.13771,2276.6,2276.2,2.093]
[1750561783546,12.13771,2276.6,2276.2,4.72889283]
[1750561783775,12.13771,2276.6,2276.2,2.093]
[1750561784173,41.3771,2276.5,2275.5,0.7572]
[1750561784374,10.55,2276.3,2275.9,2.63626167]
[1750561784586,10.55,2276.1,2275.1,0.38565455]
[1750561784744,10.55,2276.1,2275.5,2.63678312]
[1750561784745,0.55,2275.7,2275.5,2.63678312]
[1750561785197,0.55,2275.8,2275.5,2.63678312]
[1750561785798,0.55,2275.8,2274.6,10.29081816]
[1750561785799,30.0,2275.6,2274.6,0.7619]
[1750561785945,0.55,2275.5,2275.4,2.636899]
[1750561786146,10.55,2275.5,2275.3,2.6369301]
[1750561786367,10.55,2275.5,2275.2,2.63712126]
[1750561786791,10.55,2275.5,2275.3,2.63701266]
[1750561786993,12.46811883,2275.5,2274.8,12.646]
[1750561787293,12.46811883,2275.5,2275.3,2.63691923]
[1750561787494,12.46811883,2275.5,2275.2,2.63707766]
[1750561787862,12.46811883,2275.5,2274.9,2.63745203]
[1750561788189,12.46811883,2275.5,2275.1,2.63722454]
[1750561788694,12.46811883,2275.5,2275.2,2.63712738]
[1750561788852,0.7505,2275.6,2275.5,2.63678312]
[1750561789052,1.3005,2275.6,2275.4,2.63684117]
[1750561789293,1.3005,2275.6,2275.5,2.63678312]
[1750561789530,0.7505,2275.6,2275.5,2.63678312]
[1750561790885,0.22968832,2275.7,2275.6,2.63666725]
[1750561791086,0.7764,2275.9,2275.8,2.63643553]
[1750561791627,1.00607681,2276.2,2275.9,2.63629873]
[1750561791782,10.7764,2276.2,2276.1,2.63608804]
[1750561792216,1.3264,2276.2,2276.1,2.63608804]
[1750561792528,7.88464551,2276.3,2276.2,2.63597223]
[1750561792730,7.655,2276.3,2276.2,2.63597223]
[1750561793392,17.655,2276.3,2276.2,2.63597223]
[1750561795286,10.0,2276.3,2276.2,2.63597223]
[1750561795486,8.9694,2276.5,2276.4,2.63574064]
[1750561795688,18.9694,2276.5,2276.4,2.63574064]
[1750561795892,8.9694,2276.5,2276.3,2.6358028]
[1750561796412,0.7764,2276.5,2276.4,2.63574064]
[1750561796617,0.8125,2276.8,2276.7,2.63539333]
[1750561796794,10.8125,2276.8,2276.6,2.63546491]
[1750561797250,0.8125,2277.1,2276.9,2.63513703]
[1750561797401,7.632,2277.0,2276.9,2.63513703]
[1750561797603,8.67407863,2277.1,2277.0,2.63504611]
[1750561797845,18.4445,2277.1,2277.0,2.63504611]
[1750561798007,1.93450584,2277.3,2277.2,2.63481468]
[1750561798523,1.93450584,2277.3,2277.1,2.6349099]
[1750561798524,1.93450584,2277.3,2277.1,2.63486643]
[1750561798701,1.93450584,2277.3,2277.2,2.63481468]
[1750561800132,1.93450584,2277.3,2277.2,4.72881468]
[1750561801340,1.93450584,2277.3,2277.2,4.72781468]
[1750561801848,2.48450584,2277.3,2277.2,2.63481468]
[1750561802018,1.93450584,2277.3,2277.2,2.63481468]
[1750561802336,1.93450584,2277.3,2277.2,8.82048734]
[1750561803405,1.93450584,2277.3,2277.2,10.91348734]
[1750561804448,0.66666667,2277.4,2277.2,10.91348734]
[1750561804449,0.66666667,2277.4,2277.3,2.63469898]
[1750561804903,0.66666667,2277.4,2277.2,3.37103109]
[1750561805104,0.55,2277.3,2276.6,10.55]
[1750561805345,0.55,2277.1,2276.7,4.75432696]
[1750561805554,10.55,2276.9,2276.4,2.119]
[1750561805920,10.55,2276.9,2276.4,2.63567212]
[1750561806113,10.55,2276.9,2276.4,4.75467212]
[1750561806316,0.7856,2276.8,2276.4,4.75467212]
[1750561806549,0.7856,2276.8,2276.6,2.63549379]
[1750561806860,0.7856,2276.8,2276.6,2.635502]
[1750561807156,0.7856,2276.8,2276.7,2.63539333]
[1750561808420,0.7856,2276.8,2276.5,2.63558122]
[1750561808619,0.7856,2276.8,2276.4,2.119]
[1750561808806,10.0,2276.7,2276.3,2.119]
[1750561809121,1.86416,2276.8,2276.3,4.75485332]
[1750561809525,10.0,2276.7,2276.3,2.119]
[1750561809864,0.55,2276.6,2275.9,2.63631969]
[1750561810144,1.3711,2276.3,2275.9,4.75530226]
[1750561810523,0.8211,2276.8,2275.9,4.67398194]
[1750561810854,0.55,2276.7,2276.3,2.63577406]
[1750561811006,0.55,2276.7,2276.4,2.63573647]
[1750561811452,0.55,2276.7,2276.3,2.63581831]
[1750561811663,0.55,2276.7,2276.2,2.63593369]
[1750561811947,0.8211,2276.8,2276.1,0.04392973]
[1750561812161,10.8211,2276.8,2276.0,2.63610796]
[1750561812362,0.55,2276.7,2276.4,2.63573094]
[1750561812950,0.55,2276.7,2276.3,2.63578736]
[1750561813266,0.55,2276.7,2275.9,4.67398194]
[1750561813267,0.55,2276.5,2276.2,4.75491788]
[1750561813439,0.55,2276.7,2276.2,2.85810014]
[1750561813648,10.8211,2276.8,2276.6,2.63539414]
[1750561813962,0.7628,2277.2,2276.9,2.63515301]
[1750561814158,0.7628,2277.2,2277.0,2.63496612]
[1750561814318,0.7628,2277.2,2277.0,2.63495948]
[1750561814660,7.637,2277.5,2277.0,2.63495948]
[1750561814817,7.637,2277.5,2276.7,2.63535154]
[1750561815018,7.637,2277.5,2277.1,2.63492396]
[1750561815359,0.55,2277.3,2277.0,2.63497069]
[1750561815950,0.55,2277.0,2276.7,2.6353064]
[1750561816257,8.4008,2277.1,2277.0,2.63504611]
[1750561816559,10.0,2277.0,2276.7,2.119]
[1750561816759,10.0,2277.0,2276.8,2.63524103]
[1750561817258,10.0,2277.0,2276.9,2.63516184]
[1750561817732,17.638,2277.1,2277.0,2.63504611]
[1750561817931,17.638,2277.1,2276.7,4.75436756]
[1750561818176,17.638,2277.1,2276.9,2.63513528]
[1750561818462,17.638,2277.1,2276.7,2.63530842]
[1750561818663,17.638,2277.1,2276.9,2.63515314]
[1750561818864,17.638,2277.1,2276.8,2.63522155]
[1750561819482,17.638,2277.1,2277.0,2.63504611]
[1750561820087,17.638,2277.1,2276.9,2.63510992]
[1750561820380,17.638,2277.1,2277.0,2.63504611]
[1750561820593,10.0,2277.1,2277.0,2.63504611]
[1750561820786,0.7628,2277.5,2277.4,2.63458329]
[1750561821089,0.22952337,2277.6,2277.5,2.63446761]
[1750561821291,0.2222433,2277.8,2277.5,2.63446761]
[1750561821582,0.2222433,2277.8,2277.7,2.63423629]
[1750561822091,0.2222433,2277.8,2277.6,2.63431926]
[1750561822285,0.1722433,2277.8,2277.7,2.63423629]
[1750561822785,40.55,2277.5,2276.5,4.66]
[1750561822988,2.63575593,2276.4,2275.8,4.7553459]
[1750561823231,10.0,2276.1,2275.6,2.119]
[1750561823345,3.18598389,2276.2,2275.6,4.75563654]
[1750561823548,30.0,2276.0,2275.6,2.119]
[1750561823861,0.7821,2275.6,2275.3,2.63701489]
[1750561824079,0.55,2275.8,2275.3,0.04394712]
[1750561824385,10.55,2275.8,2275.6,2.63663808]
[1750561825182,7.637,2275.8,2275.3,1.535011]
[1750561825389,8.4191,2275.9,2275.4,0.04394058]
[1750561825589,10.0,2275.8,2275.7,2.63655139]
[1750561825756,10.0,2275.8,2275.4,1.50102516]
[1750561825956,10.0,2275.8,2275.6,2.63660231]
[1750561826289,10.0,2275.8,2275.6,2.63659601]
[1750561826441,10.0,2275.8,2275.6,2.63665165]
[1750561826645,10.0,2275.8,2275.7,2.63655139]
[1750561826860,10.0,2275.8,2275.5,2.63675829]
[1750561827093,10.0,2275.8,2275.6,2.63659677]
[1750561827261,10.0,2275.8,2275.7,2.63655139]
[1750561827686,10.0,2275.8,2275.6,2.63662859]
[1750561827908,0.7821,2275.7,2275.3,2.63701489]
[1750561828081,0.7821,2275.7,2275.4,2.6367956]
[1750561828595,0.55,2275.4,2274.8,0.7623]
[1750561828897,0.55,2275.4,2275.0,2.63729611]
[1750561828898,7.63,2275.3,2275.0,2.63729611]
[1750561829196,7.63,2275.3,2274.9,2.63743306]
[1750561829569,7.63,2275.3,2275.0,2.63736225]
[1750561830392,0.55,2275.6,2275.1,2.63723317]
[1750561830568,7.628,2275.4,2275.3,2.6369874]
[1750561830972,7.622,2275.4,2275.2,2.63707598]
[1750561831156,0.789,2275.2,2274.8,2.6375102]
[1750561831495,17.626,2275.1,2275.0,2.63727664]
[1750561831994,10.0,2275.0,2274.7,2.12]
[1750561832182,7.626,2275.1,2274.7,4.75764704]
[1750561832706,10.55,2275.0,2274.5,2.63790517]
[1750561832904,13.18737924,2275.0,2274.4,15.31096811]
[1750561833200,0.55,2275.1,2274.8,2.63758509]
[1750561833424,17.62,2274.9,2274.8,2.63758509]
[1750561833784,10.0,2274.9,2274.6,2.63773973]
[1750561833985,10.0,2274.8,2274.5,2.63790384]
[1750561834227,10.0,2274.8,2274.7,2.63771046]
[1750561835189,10.0,2275.0,2274.6,2.63779381]
[1750561835384,10.0,2274.8,2274.6,2.63779381]
[1750561835612,10.0,2274.8,2274.5,2.63788647]
[1750561835816,10.0,2274.8,2274.6,2.63782496]
[1750561836015,10.0,2274.8,2274.4,4.75804784]
[1750561836230,10.0,2274.8,2274.6,2.6378119]
[1750561836592,10.0,2274.8,2274.7,2.63771046]
[1750561836786,10.0,2274.8,2274.6,2.63780446]
[1750561836787,10.22971201,2274.8,2274.6,2.63780446]
[1750561837038,10.22971201,2274.8,2274.4,2.12]
[1750561837196,12.15402544,2274.8,2274.4,4.75804458]
[1750561837397,1.3477,2274.7,2274.4,2.12]
[1750561837596,10.0,2274.5,2274.4,4.75805838]
[1750561837790,10.0,2274.5,2274.4,2.63805838]
[1750561838622,10.0,2274.5,2274.3,2.63809833]
[1750561838832,10.0,2274.5,2274.4,2.63805838]
[1750561839854,0.7977,2274.7,2274.3,0.04396736]
[1750561840133,0.7977,2274.7,2274.1,4.66]
[1750561840134,10.0,2274.5,2274.4,2.63799458]
[1750561841793,12.39187,2274.5,2274.4,2.63805838]
[1750561842109,0.67338599,2274.8,2274.7,2.63771046]
[1750561842110,0.22971201,2274.8,2274.7,2.63771046]
[1750561842312,0.8253,2275.4,2275.3,2.63701489]
[1750561842540,7.85269697,2275.5,2275.4,2.636899]
[1750561843523,17.85269697,2275.5,2275.4,2.636899]
[1750561843849,40.0,2275.4,2275.0,2.63726088]
[1750561844003,0.55,2275.3,2275.1,2.63721706]
[1750561844206,17.617,2275.2,2274.7,0.8065]
[1750561844399,17.616,2275.2,2275.1,2.63724671]
[1750561846004,10.0,2275.2,2275.1,2.63724671]
[1750561846239,17.614,2275.2,2275.1,2.63724671]
[1750561850418,10.0,2275.2,2275.1,2.63724671]
[1750561850754,17.589,2275.2,2275.1,2.63724671]
[1750561851060,17.589,2275.2,2274.9,2.63741444]
[1750561851227,17.589,2275.2,2275.0,2.63734774]
[1750561851415,17.589,2275.2,2274.7,0.8065]
[1750561851732,17.589,2275.2,2275.1,2.63724671]
[1750561852659,17.589,2275.2,2274.9,2.63737686]
[1750561852817,17.589,2275.2,2274.7,1.36352381]
[1750561853011,17.589,2275.2,2275.1,2.63724671]
[1750561853212,17.589,2275.2,2274.8,2.63759451]
[1750561853213,17.589,2275.2,2274.7,1.36352381]
[1750561853415,17.589,2275.2,2275.1,2.63724671]
[1750561854033,17.589,2275.2,2275.0,2.63731584]
[1750561854238,17.589,2275.2,2274.9,2.63743232]
[1750561854239,17.589,2275.2,2274.9,2.63745899]
[1750561854419,17.589,2275.2,2274.7,2.63765617]
[1750561854420,10.7966,2275.1,2274.7,2.63765617]
[1750561854740,7.589,2275.0,2274.8,2.63758988]
[1750561855136,10.0,2274.9,2274.6,2.63782123]
[1750561855357,10.0,2274.7,2274.3,2.63813617]
[1750561855522,10.0,2274.7,2274.3,2.63806465]
[1750561855721,7.589,2274.6,2274.5,2.6379424]
[1750561855935,7.589,2274.6,2274.4,2.63800999]
[1750561856265,0.83856,2275.0,2274.6,2.63771277]
[1750561856428,10.0,2274.8,2274.7,2.63765398]
[1750561856628,10.0,2274.8,2274.5,2.63787456]
[1750561856851,7.589,2274.7,2274.4,2.6379975]
[1750561857850,0.2297133,2275.0,2274.9,2.63747857]
[1750561858848,7.589,2275.4,2275.1,2.63715083]
[1750561859043,10.22966643,2275.3,2275.1,2.6372361]
[1750561859245,10.22966643,2275.3,2275.1,2.63713084]
[1750561859435,10.22966643,2275.3,2275.2,2.6371308]
[1750561859643,12.64482307,2275.3,2274.7,2.126]
[1750561859946,12.64482307,2275.3,2274.9,2.63747018]
[1750561860135,7.589,2275.2,2274.9,2.63747018]
[1750561860335,7.589,2275.1,2275.0,2.63736255]
[1750561861067,7.589,2275.1,2274.9,2.63742983]
[1750561861285,7.589,2275.1,2275.0,2.63736263]
[1750561862273,7.589,2275.1,2274.9,2.63741309]
[1750561862458,7.589,2275.1,2275.0,2.63736263]
[1750561862844,7.589,2275.1,2274.9,2.63742949]
[1750561863045,7.589,2275.1,2274.8,2.63754904]
[1750561863355,7.589,2275.1,2274.9,2.63746495]
[1750561863557,7.589,2275.1,2274.8,2.63756719]
[1750561863787,7.589,2275.1,2274.4,3.16559261]
[1750561863788,10.784,2275.0,2274.4,2.126]
[1750561863944,10.784,2275.0,2274.7,2.63770174]
[1750561864268,7.588,2274.9,2274.7,2.63770174]
[1750561864458,7.588,2274.9,2274.8,2.63759451]
[1750561864702,1.01366643,2275.3,2274.9,2.63747857]
[1750561864862,8.138,2275.2,2275.0,2.63728786]
[1750561865041,10.0,2275.1,2275.0,2.63728786]